Cogmind - Beta 15 @@@ ROGUE MODE // 2025.09.23 @ 23:40:01 Player: Runagate Result: Destroyed by S-27 Virus with Autogun Performance ------------- Evolutions (6) 3000 Regions Visited (11) 2200 Robots Destroyed (184) 920 Value Destroyed (7743) 7743 Prototype IDs (16) 320 Alien Tech Used (2) 400 Bonus (660) 660 TOTAL SCORE: 15243 Bonus ------- High Alert Combat Kills 204 Follower Combat Kills 156 Met Zhirov 300 Cogmind --------- Core Integrity 0/1150 Matter 196/300 Energy 100/100 System Corruption 36% Temperature Warm (186) Movement Core (50) Location -4/Factory Parts ------- > --- POWER (2) -------- (None) > --- PROPULSION (4) --- (None) > --- UTILITY (10) ----- (None) > --- WEAPON (3) ------- (None) > --- INVENTORY (5) ---- Light Ion Engine Antigrav System Plasma Rifle Coil Gun Micro-nuke Launcher Peak State ------------ > --- POWER ------------ Neutrino Core Neutrino Core > --- PROPULSION ------- Medium Treads Improved Medium Treads Improved Medium Treads Armored Medium Treads > --- UTILITY ---------- Improved Cryofiber Web Advanced Heat Sink Advanced Heat Sink High-capacity Storage Unit Enhanced Optical Array Advanced Signal Interpreter Advanced Targeting Computer Advanced Melee Analysis Suite Experimental Core Shielding Advanced Thermal Defense Suite > --- WEAPON ----------- Gatling Laser Phase Cannon Precision Assault Rifle > --- INVENTORY -------- Neutrino Core Neutrino Core Improved Heat Sink Advanced Heat Sink Cooling System Matter Compressor Quantum Capacitor Improved Transmission Jammer Layered Light Armor Plating Layered Heavy Armor Plating Advanced Hacking Suite Improved Component Analysis Suite Assault Drone Bay HERF Cannon Axe [Rating: 107] Favorites ----------- Power Neutrino Core Engine Improved Ion Engine Power Core Neutrino Core Reactor Light Antimatter Reactor Propulsion Medium Treads Treads Medium Treads Leg Flexi-carbon Leg Wheel Compact Wheel Hover Unit Linear Gravjet Utility High-capacity Storage Unit Device Improved Sensor Array Storage High-capacity Storage Unit Processor Advanced Signal Interpreter Protection Layered Heavy Armor Plating Weapon Flak Gun Energy Gun Gatling Laser Energy Cannon Phase Cannon Ballistic Gun Flak Gun Ballistic Cannon Assault Cannon Launcher Rocket Launcher Slashing Weapon Axe Build | -11 -10 -9 -8 -7 -6 -5 -5 -5 -5 -4 -4 ------- Run | Yrd Mat Mat Mat Fac Fac Fac Upp Upp Zhi Pro Fac Slots Evolved 12 | . . 2 2 2 2 2 . . . . 2 Power 1 | . . . . . . . . . . . 1 Propulsion 2 | . . 1 . 1 . . . . . . . Utility 8 | . . . 2 1 2 2 . . . . 1 Weapon 1 | . . 1 . . . . . . . . . Parts Attached 155 | 8 7 10 13 25 9 21 11 4 1 3 43 Power 27 | 2 4 1 . 5 1 4 1 1 . . 8 Engine 12 | 2 4 1 . 3 1 . . . . . 1 Core 10 | . . . . 2 . 4 1 1 . . 2 Reactor 5 | . . . . . . . . . . . 5 Propulsion 33 | 2 . 1 5 4 1 6 5 1 . . 8 Treads 25 | 2 . 1 5 4 1 6 4 1 . . 1 Leg 1 | . . . . . . . . . . . 1 Wheel 3 | . . . . . . . 1 . . . 2 Hover 4 | . . . . . . . . . . . 4 Flight . | . . . . . . . . . . . . Utility 55 | 2 1 4 4 9 5 6 3 2 1 1 17 Device 31 | 1 . 3 3 5 . 5 2 . . 1 11 Storage 7 | 1 1 1 . 2 . . . . . . 2 Processor 10 | . . . . 2 4 . . 1 . . 3 Hackware . | . . . . . . . . . . . . Protection 7 | . . . 1 . 1 1 1 1 1 . 1 Artifact . | . . . . . . . . . . . . Weapon 40 | 2 2 4 4 7 2 5 2 . . 2 10 Energy Gun 10 | . 2 . 2 1 1 2 . . . . 2 Energy Cannon 3 | . . . . . . 1 . . . 1 1 Ballistic Gun 21 | 2 . 4 2 4 1 2 1 . . 1 4 Ballistic Cannon 1 | . . . . 1 . . . . . . . Launcher 4 | . . . . . . . 1 . . . 3 Special Weapon . | . . . . . . . . . . . . Impact Weapon . | . . . . . . . . . . . . Slashing Weapon 1 | . . . . 1 . . . . . . . Piercing Weapon . | . . . . . . . . . . . . Special Melee Weapon . | . . . . . . . . . . . . Unidentified Prototypes 6 | . . . . 1 . . . . 3 . 2 Corrupted Parts 1 | . . . . . . . . . . . 1 System Corruption 1 | . . . . . . . . . . . 1 Parts Lost 71 | . . . 3 2 2 13 5 1 . 4 41 Power 9 | . . . . 1 . . . . . . 8 Propulsion 21 | . . . . . . 6 2 1 . 1 11 Utility 21 | . . . 2 1 1 3 1 . . 1 12 Weapon 20 | . . . 1 . 1 4 2 . . 2 10 Highest Loss Streak 9 | . . . 2 2 2 5 3 1 . 2 9 To Critical Strikes 1 | . . . . . . . . . . . 1 Average Backups 15 | 1 5 13 14 18 18 18 14 17 19 16 11 Power 2 | . 1 2 2 2 2 2 3 4 3 3 1 Propulsion 2 | . . . 2 4 4 2 . 2 1 1 . Utility 5 | . 1 5 4 5 5 5 5 6 7 8 7 Weapon 5 | . 2 4 5 6 6 7 4 4 7 3 2 Tool/Special . | . . . . . . . . . . . . Unused Backups 25 | . 1 2 2 7 3 2 . 1 . . 7 Power 4 | . . . . 1 2 1 . . . . . Propulsion 2 | . . . 1 . . . . . . . 1 Utility 11 | . 1 1 1 2 1 1 . 1 . . 3 Weapon 8 | . . 1 . 4 . . . . . . 3 Tool/Special . | . . . . . . . . . . . . Average Slot Usage (%) 93 | . 100 93 98 99 98 94 96 97 78 91 72 Engine 3 | . 14 11 9 3 6 2 . . . . . Core 3 | . . . . 3 . 2 5 5 5 5 6 Treads 23 | . 28 27 26 30 26 22 19 22 23 21 9 Device 18 | . 14 11 21 18 13 22 30 24 13 14 15 Storage 6 | . 14 11 9 7 6 5 5 5 5 5 3 Processor 11 | . . . . 11 19 16 11 13 17 17 14 Protection 2 | . . . 4 . 5 1 2 5 7 5 3 Energy Gun 5 | . 11 11 8 7 6 4 6 5 1 . 3 Energy Cannon 2 | . . . . . . . 4 5 1 9 3 Ballistic Gun 9 | . 16 21 18 11 13 11 3 2 . 4 4 Peak Build Rating 107 | 7 9 17 33 49 61 78 85 83 81 90 107 Average Rating 58 | 5 7 15 24 46 58 70 79 81 73 86 77 On Entrance 47 | . 7 9 17 33 49 58 78 83 81 75 78 Naked Turns 77 | . . . . . . . . . . . 77 Heaviest Build 149 | 14 31 37 40 67 70 85 85 98 94 100 149 Greatest Support 116 | 40 40 60 60 104 104 104 114 115 115 115 116 Greatest Overweight (x) 7 | . . . . . . 2 7 1 . 1 4 Average Overweight (x) . | . . . . . . . . . . . . Largest Inventory Capacity 25 | 8 15 15 15 20 20 20 20 20 20 20 25 Average Capacity 18 | 7 10 15 15 19 20 20 20 20 20 20 16 Most Carried 20 | 2 12 15 15 20 20 20 16 18 20 20 20 Average Carried 16 | 1 5 13 14 18 19 18 14 17 19 16 13 Final Capacity 20 | 8 15 15 15 20 20 20 20 20 20 20 5 Final Carried 20 | 2 9 15 15 20 20 16 16 18 20 16 5 Class Distribution -------------------- 28% | Scavenger-Skirmisher 25% | Skirmisher 18% | Gunner 10% | Scavenger-Gunner 5% | Mutant 3% | Scavenger-Mutant 3% | Scavenger-Tank Dominant Class ---------------- Mutant | -10/Materials Gunner | -9/Materials Tank | -8/Materials Skirmisher | -7/Factory Skirmisher | -6/Factory Skirmisher | -5/Factory Scavenger-Skirmisher | -5/Upper Caves Scavenger-Skirmisher | -5/Upper Caves Scavenger-Mutant | -5/Zhirov Scavenger-Skirmisher | -4/Proximity Caves Scavenger-Gunner | -4/Factory Resources | -11 -10 -9 -8 -7 -6 -5 -5 -5 -5 -4 -4 ----------- Run | Yrd Mat Mat Mat Fac Fac Fac Upp Upp Zhi Pro Fac Matter Collected 5994 | 308 135 359 328 974 373 1010 748 151 . 385 1223 Remotely . | . . . . . . . . . . . . Salvage Created 7001 | 151 393 463 379 1096 317 1038 383 377 . 683 1721 Parts 384 | 8 26 47 23 77 23 50 16 12 . 32 70 Haulers Intercepted 1 | . . 1 . . . . . . . . . Recyclers Shooed 6 | . . 1 1 1 . 1 . . . . 2 Parts Field Recycled . | . . . . . . . . . . . . Retrieved Matter . | . . . . . . . . . . . . Parts Self-Destructed 35 | . . . . . . . 5 7 . 23 . Prevented 8 | . . . . . . . . . . 8 . Kills | -11 -10 -9 -8 -7 -6 -5 -5 -5 -5 -4 -4 ------- Run | Yrd Mat Mat Mat Fac Fac Fac Upp Upp Zhi Pro Fac Combat Hostiles Destroyed 150 | . 10 15 11 26 6 27 4 7 . 14 30 Melee 2 | . . . 2 . . . . . . . . Guns 112 | . 10 15 9 23 6 27 2 2 . 4 14 Cannons 20 | . . . . 3 . . 1 1 . 9 6 AOE 15 | . . . . . . . 1 4 . 1 9 Classes Destroyed 22 | 2 3 5 1 3 . 2 3 1 . 1 1 Worker 6 | . . 1 . 1 1 . . . . . 3 Builder 6 | . . . 1 . . . . . . . 5 Tunneler 4 | 3 . . . 1 . . . . . . . Hauler 1 | . . 1 . . . . . . . . . Recycler 6 | 1 1 . . 2 . . . . . . 2 Mechanic 1 | . . 1 . . . . . . . . . Operator 2 | . . 1 . . . 1 . . . . . Drone 2 | . . . . . . . . . . 2 . Watcher 7 | . 1 3 . 2 . . . . . . 1 Swarmer 38 | . 3 6 1 4 . 7 . 5 . 5 7 Cutter 1 | . . . . 1 . . . . . . . Grunt 55 | . 7 6 7 10 1 5 . . . 5 14 Brawler 3 | . . . . 1 . 1 . . . 1 . Duelist 1 | . . . . . . . . 1 . . . Sentry 14 | . . 3 3 2 3 3 . . . . . Specialist 2 | . . . . . . 2 . . . . . Hunter 2 | . . . . . . . . . . . 2 Programmer 28 | . . . . 8 2 8 . 2 . 1 7 Heavy 1 | . . . . . . 1 . . . . . Behemoth 1 | . . . . . . . 1 . . . . Decomposer 1 | . . . . . . . 1 . . . . Samaritan 9 | . . . . . . . 5 3 . 1 . Wasp 2 | . . . . . . . 2 . . . . Mutant 1 | . . . . . . . 1 . . . . Best Kill Streak 8 | 4 2 5 3 4 4 6 2 5 . 5 8 Combat Bots Only 7 | . 2 4 3 4 3 6 2 5 . 5 7 Max Kills in Single Turn 8 | 1 1 2 2 2 2 2 1 5 . 1 8 Gunslinging 1 | . . 1 . . . 1 . . . . . Exploded 4 | . . . . . . . 1 4 . 1 4 Melee 1 | . . . 1 . . . . . . . . Uniques/NPCs Destroyed . | . . . . . . . . . . . . Combat | -11 -10 -9 -8 -7 -6 -5 -5 -5 -5 -4 -4 -------- Run | Yrd Mat Mat Mat Fac Fac Fac Upp Upp Zhi Pro Fac Hostile Shots Fired 1048 | . 21 38 49 132 84 199 75 30 . 68 352 Missed 341 | . 3 13 8 47 30 61 25 8 . 23 123 Hits 707 | . 18 25 41 85 54 138 50 22 . 45 229 Melee 1 | . . . . 1 . . . . . . . Projectile 706 | . 18 25 41 84 54 138 50 22 . 45 229 Critical Strikes 36 | . . . 1 4 1 8 2 2 . . 18 Actively Blocked 4 | . . . . . . . . . . . 4 Part Disruptions 2 | . . . . . . 1 . 1 . . . Damage Taken 13433 | . 192 276 620 1200 527 2982 1205 432 . 813 5186 Core 2071 | . 44 46 90 126 75 310 134 61 . 33 1152 Absorbed by Shields 298 | . . . . . . . . . . . 298 Redirected to Shielding 469 | . . . 109 . 101 . . . . . 259 Ignored by Resistances 15 | . . . . . . . . . . . 15 Regen/Repaired (Parts) 127 | . . 89 38 . . . . . . . . Core Remaining (%) 81 | 100 82 88 83 82 91 . . . . 43 . Volleys Fired 385 | 7 25 34 24 55 13 72 25 15 . 31 84 Largest 3 | 2 2 3 3 3 3 3 3 3 . 3 3 Hottest 234 | 40 85 115 115 145 136 234 234 198 . 201 234 Shots Fired 1039 | 14 50 100 72 167 37 204 76 47 . 85 187 Gun 842 | 14 50 100 72 124 37 197 57 29 . 34 128 Cannon 182 | . . . . 43 . 7 16 17 . 49 50 Launcher 15 | . . . . . . . 3 1 . 2 9 Special . | . . . . . . . . . . . . Kinetic 600 | 14 25 68 48 112 25 134 30 14 . 31 99 Thermal 391 | . 25 32 24 55 12 70 43 32 . 32 66 Explosive 15 | . . . . . . . 3 1 . 2 9 Electromagnetic 33 | . . . . . . . . . . 20 13 Robot Hit Streak 33 | 4 10 17 12 19 15 21 10 20 . 11 33 Robot Miss Streak 11 | 3 4 11 6 8 5 5 3 2 . 5 4 Penetration Max 1 | . . . . . . . . . . . 1 Secondary Targets 18 | . . 4 1 . 1 8 1 . . . 3 Max Gunslinging Chain 2 | . . 1 1 . 1 2 1 . . . 1 Shots Hit Robots 736 | 8 35 69 60 113 32 169 56 32 . 48 114 Core Hits 620 | 5 36 56 49 109 33 165 31 22 . 30 84 Critical Kills 1 | . . . . . . . 1 . . . . Critical Parts Destroyed 2 | . . . . . . . . . . . 2 Critical Strikes 7 | . . . . 1 1 1 1 . . 1 2 Burn 2 | . . . . . 1 1 . . . . . Meltdown 1 | . . . . . . . 1 . . . . Destroy 2 | . . . . . . . . . . . 2 Blast 1 | . . . . 1 . . . . . . . Corrupt 1 | . . . . . . . . . . 1 . Melee Attacks 23 | . . . . 2 . 9 4 5 . 3 . Impact . | . . . . . . . . . . . . Slashing 23 | . . . . 2 . 9 4 5 . 3 . Piercing . | . . . . . . . . . . . . Sneak Attacks 1 | . . . . . . 1 . . . . . Combat Hostiles . | . . . . . . . . . . . . Follow-up Attacks . | . . . . . . . . . . . . Damage Inflicted 20218 | 101 435 1168 1138 2783 748 4135 1487 1196 . 1467 5560 Guns 13491 | 101 435 1160 1108 2166 748 3889 1024 558 . 373 1929 Cannons 3527 | . . . . 559 . 151 377 401 . 926 1113 Explosions 2996 | . . . . . . . 86 237 . 168 2505 Melee 74 | . . . . . . 74 . . . . . Ramming 130 | . . 8 30 58 . 21 . . . . 13 Kinetic 8468 | 101 147 794 741 1411 523 2550 410 120 . 304 1367 Thermal 9335 | . 288 366 367 1314 225 1490 991 839 . 501 2954 Explosive 1602 | . . . . . . . 86 237 . 168 1111 Electromagnetic 609 | . . . . . . . . . . 494 115 Impact . | . . . . . . . . . . . . Slashing 74 | . . . . . . 74 . . . . . Piercing . | . . . . . . . . . . . . Highest Corruption 36 | . . . . 2 8 7 7 7 7 9 36 Average Corruption 6 | . . . . 1 5 4 7 7 7 8 13 Corruption Purged 1 | . . . . 1 . . . . . . . Corruption Blocked . | . . . . . . . . . . . . Effects 269 | . . . . 23 28 27 36 29 12 66 48 Message Errors 65 | . . . . 9 3 5 8 7 4 19 10 Matter Fused 54 | . . . . 6 7 8 7 9 1 12 4 Heat Flow Errors 37 | . . . . 3 2 3 8 3 2 11 5 Energy Discharges 34 | . . . . 2 6 3 5 4 1 4 9 Parts Rejected 2 | . . . . . 1 1 . . . . . Parts Fused 2 | . . . . . . . . . . 2 . Data Loss (minor) 32 | . . . . 1 4 2 6 3 2 9 5 Data Loss (major) 9 | . . . . . . . 1 1 2 2 3 Misfires 8 | . . . . 2 1 . 1 2 . 2 . Alerts 5 | . . . . . 1 3 . . . . 1 Misdirections 8 | . . . . . . . . . . . 8 Weapon Failures 13 | . . . . . 3 2 . . . 5 3 Overload Shots . | . . . . . . . . . . . . Overflow Damage 622 | . . . . 12 . 34 87 70 . 32 387 Projectiles 344 | . . . . 6 . . 87 70 . 16 165 Explosions 241 | . . . . 3 . . . . . 16 222 Melee 37 | . . . . 3 . 34 . . . . . Knockbacks 12 | . . . 1 11 . . . . . . . Impact 2 | . . . 1 1 . . . . . . . Kinetic 9 | . . . . 9 . . . . . . . Secondary 1 | . . . . 1 . . . . . . . Self-Inflicted Damage 435 | . . . . 125 . . . . . 47 263 Shots 7 | . . . . 3 . . . . . 1 3 Rammed 23 | . . 2 7 7 . 3 . . . . 4 Targets Rammed 25 | . . 2 8 7 . 4 . . . . 4 Kicked . | . . . . . . . . . . . . Crushed 2 | . . . 1 . . 1 . . . . . Highest Temperature 221 | . 108 152 172 221 150 3 113 7 149 181 220 Average Temperature 44 | . 28 40 74 46 91 2 69 7 71 81 27 Received Heat Transfer 2392 | . 87 75 324 210 108 633 430 . . 60 465 Siege Activations . | . . . . . . . . . . . . Martial Activations . | . . . . . . . . . . . . Shielding Activations . | . . . . . . . . . . . . Robots Disrupted . | . . . . . . . . . . . . Combat Hostiles . | . . . . . . . . . . . . Robots Corrupted . | . . . . . . . . . . . . Combat Hostiles . | . . . . . . . . . . . . Parts Fried 1 | . . . . . . . . . . 1 . Impact Corruptions 1 | . . . . 1 . . . . . . . Robots Melted 2 | . . . . . . . 1 . . . 1 Combat Hostiles 1 | . . . . . . . . . . . 1 Parts Melted 12 | . . . . 3 . 1 . 4 . . 4 Heat Transferred 13819 | . 475 470 440 2797 520 2426 1756 1369 . 668 2898 Parts Sabotaged . | . . . . . . . . . . . . Parts Stolen . | . . . . . . . . . . . . Parts Stripped . | . . . . . . . . . . . . Power Chain Reactions 1 | . . . . 1 . . . . . . . Alert | -11 -10 -9 -8 -7 -6 -5 -5 -5 -5 -4 -4 ------- Run | Yrd Mat Mat Mat Fac Fac Fac Upp Upp Zhi Pro Fac Maximum Alert Level 3 | . . 1 . 2 1 1 . . . . 3 Low Security (%) 66 | 100 100 79 100 33 90 77 . . . . 80 Level 1 10 | . . 20 . 6 9 22 . . . . 9 Level 2 22 | . . . . 59 . . . . . . 4 Level 3 . | . . . . . . . . . . . 5 Level 4 . | . . . . . . . . . . . . Level 5 . | . . . . . . . . . . . . High Security . | . . . . . . . . . . . . Max Security . | . . . . . . . . . . . . Peak Influence 859 | 15 116 246 64 504 224 245 . . . . 859 Initial 224 | . 3 35 62 29 224 39 . . . . 171 Average 178 | 3 40 139 22 300 90 126 . . . . 150 Influence Increases 5309 | 20 321 528 287 962 195 769 62 160 . 310 1695 Destroy 0b10 Robot/C 2960 | . 200 300 220 520 120 540 40 140 . 240 640 Destroy 0b10 Robot/NC 180 | 20 10 35 5 30 5 5 . . . 10 60 Destroy Leader 706 | . 42 88 50 144 60 130 20 20 . 30 122 Allied During Kill 10 | . . . . . . . 2 . . . 8 Successful Hack 92 | . 23 13 8 12 10 14 . . . . 12 Disable Machine 360 | . . 30 . 150 . 15 . . . . 165 Anti-Garrison Action 150 | . . . . . . . . . . . 150 Destroy Structure 341 | . 1 2 4 46 . 20 . . . . 268 Advance Influence 150 | . . . . . . . . . . . 150 Partial Spotted 15 | . 15 . . . . . . . . . . Lose Combat Pursuer 345 | . 30 60 . 60 . 45 . . . 30 120 Influence Decreases 4450 | 15 242 464 369 569 573 639 273 160 . 275 871 Entered New Map 544 | . 2 49 86 37 235 42 79 . . . 14 Time Decay 3324 | 15 240 415 253 512 318 467 194 150 . 243 517 Lost Part 542 | . . . 30 20 20 130 . 10 . 32 300 Lost Ally 40 | . . . . . . . . . . . 40 Squads Dispatched 46 | . 2 2 2 9 3 15 . . . . 13 Investigation 1 | . . . . . . . . . . . 1 Extermination 18 | . . . . 9 2 3 . . . . 4 Reinforcement 14 | . 2 2 2 . . 4 . . . . 4 Assault 4 | . . . . . . 2 . . . . 2 Garrison 9 | . . . . . 1 6 . . . . 2 Intercept . | . . . . . . . . . . . . Searches Triggered . | . . . . . . . . . . . . Construction Impeded 4 | . . . 1 . . . . . . . 3 Haulers Reinforced . | . . . . . . . . . . . . Active Scanning Responses . | . . . . . . . . . . . . Cargo Convoy Interrupts 1 | . . . . . . 1 . . . . . Stealth | -11 -10 -9 -8 -7 -6 -5 -5 -5 -5 -4 -4 --------- Run | Yrd Mat Mat Mat Fac Fac Fac Upp Upp Zhi Pro Fac Distress Signals 9 | . 1 . 1 3 . . . . . . 4 Communications Jammed 2 | . . . . . . . . . . . 2 Distress Signals 2 | . . . . . . . . . . . 2 Times Spotted 233 | . 13 22 19 38 6 43 7 7 . 16 62 Peak Tracking Total 15 | . 3 4 5 5 3 4 5 5 . 5 15 Tactical Retreats 13 | . 1 2 . 2 . 3 . . . 2 3 Traps | -11 -10 -9 -8 -7 -6 -5 -5 -5 -5 -4 -4 ------- Run | Yrd Mat Mat Mat Fac Fac Fac Upp Upp Zhi Pro Fac Traps Triggered 3 | . . . . . 1 . . . . . 2 Indirectly . | . . . . . . . . . . . . Trap Hack Attempts . | . . . . . . . . . . . . Triggered . | . . . . . . . . . . . . Disarmed . | . . . . . . . . . . . . Reprogrammed . | . . . . . . . . . . . . Reused . | . . . . . . . . . . . . Traps Extracted . | . . . . . . . . . . . . Installed . | . . . . . . . . . . . . Triggered . | . . . . . . . . . . . . Machines | -11 -10 -9 -8 -7 -6 -5 -5 -5 -5 -4 -4 ---------- Run | Yrd Mat Mat Mat Fac Fac Fac Upp Upp Zhi Pro Fac Machines Disabled 26 | . . 2 . 10 . 1 1 . . . 12 Max in Single Turn 5 | . . 1 . 4 . 1 1 . . . 5 Garrison Access 2 | . . . . . . 1 . . . . 1 Machines Repaired . | . . . . . . . . . . . . Machines Dismantled . | . . . . . . . . . . . . Machines Sabotaged . | . . . . . . . . . . . . Overloaded Fab Kills . | . . . . . . . . . . . . Hacking | -11 -10 -9 -8 -7 -6 -5 -5 -5 -5 -4 -4 --------- Run | Yrd Mat Mat Mat Fac Fac Fac Upp Upp Zhi Pro Fac Machines Accessed 27 | . 2 4 4 3 1 1 . . 9 . 3 Terminals 13 | . 2 3 3 1 1 1 . . . . 2 Fabricators 1 | . . . . . . . . . . . 1 Repair Stations 4 | . . 1 1 2 . . . . . . . Recycling Units . | . . . . . . . . . . . . Scanalyzers . | . . . . . . . . . . . . Garrison Access . | . . . . . . . . . . . . Total Hacks 100 | . 10 11 9 5 3 2 . . 48 . 12 Successful 74 | . 6 6 4 2 2 1 . . 48 . 5 Failed 26 | . 4 5 5 3 1 1 . . . . 7 Catastrophic 5 | . . 1 1 1 . . . . . . 2 Database Lockouts . | . . . . . . . . . . . . Manual 19 | . 6 2 4 . 2 . . . . . 5 Terminals 37 | . 10 7 7 1 3 2 . . . . 7 Fabricators 5 | . . . . . . . . . . . 5 Repair Stations 10 | . . 4 2 4 . . . . . . . Recycling Units . | . . . . . . . . . . . . Scanalyzers . | . . . . . . . . . . . . Garrison Access . | . . . . . . . . . . . . Terminal Hacks 65 | . 6 4 2 . 2 1 . . 48 . 2 Record 38 | . . . . . 2 . . . 36 . . Part Schematic 4 | . . . . . . . . . 4 . . Robot Analysis 4 | . . . . . . . . . 4 . . Prototype ID Bank 5 | . . . . . . . . . 4 . 1 Emergency Access Points 1 | . 1 . . . . . . . . . . Alert Level 1 | . . . . . . . . . . . 1 Locate Traps 3 | . 2 1 . . . . . . . . . Registered Components 2 | . 1 1 . . . . . . . . . Zone Layout 7 | . 2 2 2 . . 1 . . . . . Fabricator Hacks 3 | . . . . . . . . . . . 3 Network Status 1 | . . . . . . . . . . . 1 Load Schematic 1 | . . . . . . . . . . . 1 Build 1 | . . . . . . . . . . . 1 Repair Station Hacks 6 | . . 2 2 2 . . . . . . . Scan Component 4 | . . 1 1 2 . . . . . . . Repair 2 | . . 1 1 . . . . . . . . Recycling Unit Hacks . | . . . . . . . . . . . . Scanalyzer . | . . . . . . . . . . . . Garrison Access Hacks . | . . . . . . . . . . . . Unauthorized Hacks . | . . . . . . . . . . . . Terminals . | . . . . . . . . . . . . Fabricators . | . . . . . . . . . . . . Repair Stations . | . . . . . . . . . . . . Recycling Units . | . . . . . . . . . . . . Scanalyzers . | . . . . . . . . . . . . Garrison Access . | . . . . . . . . . . . . Data Cores Recovered . | . . . . . . . . . . . . Used . | . . . . . . . . . . . . Hacking Detections 16 | . 1 3 4 3 1 1 . . . . 3 Full Trace Events 1 | . . . . . . . . . . . 1 Feedback Events . | . . . . . . . . . . . . Feedback Blocked . | . . . . . . . . . . . . Robot Schematics Acquired . | . . . . . . . . . . . . Robots Built . | . . . . . . . . . . . . Authchips . | . . . . . . . . . . . . Time . | . . . . . . . . . . . . Total Robot Build Rating . | . . . . . . . . . . . . Part Schematics Acquired 4 | . . . . . . . . . 4 . . Parts Built 1 | . . . . . . . . . . . 1 Authchips . | . . . . . . . . . . . . Time 187 | . . . . . . . . . . . 187 Total Part Build Rating 7 | . . . . . . . . . . . 7 Parts Repaired 2 | . . 1 1 . . . . . . . . Time 52 | . . 26 26 . . . . . . . . Parts Recycled . | . . . . . . . . . . . . Recycled Matter . | . . . . . . . . . . . . Retrieved Matter . | . . . . . . . . . . . . Retrieved Components . | . . . . . . . . . . . . Parts Scanalyzed . | . . . . . . . . . . . . Part Schematics Acquired . | . . . . . . . . . . . . Parts Damaged . | . . . . . . . . . . . . Bothacking | -11 -10 -9 -8 -7 -6 -5 -5 -5 -5 -4 -4 ------------ Run | Yrd Mat Mat Mat Fac Fac Fac Upp Upp Zhi Pro Fac Used RIF Installer . | . . . . . . . . . . . . Robots Hacked . | . . . . . . . . . . . . Non-combat . | . . . . . . . . . . . . Combat . | . . . . . . . . . . . . Robot Hacks Applied . | . . . . . . . . . . . . Relay Couplers Released 1 | . . . . . . 1 . . . . . Machine Destruction 1 | . . . . . . 1 . . . . . Fabnet Peak Effective % . | . . . . . . . . . . . . Robots Rewired 5 | . . . . 2 . . 3 . . . . Allies Hacked 1 | . . . . 1 . . . . . . . Hacks Repelled . | . . . . . . . . . . . . Allies | -11 -10 -9 -8 -7 -6 -5 -5 -5 -5 -4 -4 -------- Run | Yrd Mat Mat Mat Fac Fac Fac Upp Upp Zhi Pro Fac Total Allies 5 | . . . . 2 . . 3 . . . . Largest Group 3 | . . . . 2 . . 3 1 . . . Highest-Rated Group 90 | . . . . 41 . . 90 30 . . . Highest-Rated Ally 30 | . . . . 25 . . 30 30 . . . Total Orders . | . . . . . . . . . . . . Ally Attacks 58 | . . . . 6 . . 3 . . . 49 Total Damage 951 | . . . . 74 . . 110 . . . 767 Kills 4 | . . . . . . . 1 . . . 3 Allies Corrupted 1 | . . . . 1 . . . . . . . Allies Melted . | . . . . . . . . . . . . Intel | -11 -10 -9 -8 -7 -6 -5 -5 -5 -5 -4 -4 ------- Run | Yrd Mat Mat Mat Fac Fac Fac Upp Upp Zhi Pro Fac Active Infowar (turns) 14847 | 13 653 766 844 3945 864 2084 1222 1013 483 1921 1039 Optics 8148 | . . . . . 386 2084 1222 1013 483 1921 1039 Sensors 10900 | . . . 121 3945 864 2084 802 1013 483 1588 . Seismic 2155 | 13 653 766 723 . . . . . . . . Jamming 996 | . . . . . . 21 44 . . . 931 Robot Analysis Total 4 | . . . . . . . . . 4 . . Derelict Logs Recovered 3 | . . . . . . . 1 1 . 1 . Drone Launches 2 | . . . . . . . . . . . 2 Drone Recoveries . | . . . . . . . . . . . . Exploration | -11 -10 -9 -8 -7 -6 -5 -5 -5 -5 -4 -4 ------------- Run | Yrd Mat Mat Mat Fac Fac Fac Upp Upp Zhi Pro Fac Turns Passed 16275 | 94 653 1133 879 4273 865 2084 1222 1013 483 1921 1655 Spaces Moved 7969 | 39 319 572 411 2210 476 905 607 568 291 936 635 Core 156 | 4 . . . . . . . . . . 152 Treads 7635 | 35 319 572 411 2210 476 905 589 568 291 936 323 Legs 54 | . . . . . . . . . . . 54 Wheels 84 | . . . . . . . 18 . . . 66 Hover 40 | . . . . . . . . . . . 40 Flight . | . . . . . . . . . . . . Fastest Speed 36 | 50 160 160 160 162 160 160 165 162 162 162 36 Average Speed 165 | 148 160 160 164 164 160 162 176 163 162 173 168 Slowest Speed 330 | 160 160 160 170 167 162 330 250 245 162 240 330 Overloaded Moves . | . . . . . . . . . . . . Propulsion Burnouts . | . . . . . . . . . . . . Robots Hopped . | . . . . . . . . . . . . Potential Cave-ins 7 | . . . . . . . 2 2 . . 3 Cave-ins Triggered 4 | . . . . . . . . . . . 4 Teleports 1 | . . . . . . . . . 1 . . Exploration Rate (%) 43 | 4 57 45 31 47 17 17 69 71 63 86 20 Regions Visited 11 Branch Regions 4 Pre-discovered Areas 4 | . . . . . . . . . 3 1 . Known Exits Taken 7 | . . . . 1 1 1 1 1 1 1 . Unknown Exits Taken 4 | 1 1 1 1 . . . . . . . . Scrap Searched 4 | . . . . . . . 1 . . 3 . Spaces Dug 24 | . . . . 1 . 7 4 4 . 3 5 Terrain Destroyed 280 | . . . . 46 . 9 21 11 . 37 156 Melee 19 | . . . . 1 . 7 4 4 . 3 . Projectile 48 | . . . . 1 . 2 4 5 . 14 22 AOE 213 | . . . . 44 . . 13 2 . 20 134 Terrain Rammed . | . . . . . . . . . . . . Walls Destroyed . | . . . . . . . . . . . . Machines Disabled . | . . . . . . . . . . . . Actions | -11 -10 -9 -8 -7 -6 -5 -5 -5 -5 -4 -4 --------- Run | Yrd Mat Mat Mat Fac Fac Fac Upp Upp Zhi Pro Fac Total 10162 | 58 411 720 555 2730 549 1340 684 604 305 1157 1049 Wait 1362 | 4 50 78 83 365 36 305 18 5 . 175 243 Move 7958 | 38 318 571 411 2209 475 904 606 567 290 935 634 Hop . | . . . . . . . . . . . . Pick Up 85 | 1 6 12 6 22 7 7 3 2 4 1 14 Fast Attach 64 | 7 . 3 3 3 2 6 3 1 2 . 34 Attach 42 | . . . 3 3 2 9 5 1 1 5 13 Detach 10 | . . . . 1 . . . 2 2 . 5 Swap 105 | 1 7 8 9 24 7 18 10 5 . 7 9 Drop 85 | . 5 12 9 30 7 6 2 1 5 . 8 Fire 385 | 7 25 34 24 55 13 72 25 15 . 31 84 Melee 23 | . . . . 2 . 9 4 5 . 3 . Ram 4 | . . . . . . . . . . . 4 Kick . | . . . . . . . . . . . . Crush 20 | . . 2 7 7 . 4 . . . . . Escape Stasis 1 | . . . . . . . . . . . 1 Rewire 18 | . . . . 9 . . 8 . 1 . . Trap . | . . . . . . . . . . . . Miscellaneous . | . . . . . . . . . . . . Route ------- -11/Scrapyard -10/Materials (discovered 3 exits: *Mat x2 / [*Min]) -9/Materials (discovered 2 exits: *Mat x2) -8/Materials -7/Factory (discovered 3 exits: *Fac / *Sto / *Low) -6/Factory (discovered 2 exits: *Fac / [*Low]) -5/Factory -5/Upper Caves -5/Upper Caves -5/Zhirov -4/Proximity Caves -4/Factory History --------- Turn | Location | Event 3 | -11/Scrapyard | Discovered new exit (range 15) 95 | -11/Scrapyard | Entered Materials 151 | -10/Materials | Discovered new exit (range 14) 301 | -10/Materials | Build established: Mutant 497 | -10/Materials | Discovered new exit (range 15) 650 | -10/Materials | Discovered new exit (range 6) 748 | -10/Materials | Entered another Materials area 748 | -9/Materials | Evolved 2 slots: Propulsion x1, Weapon x1 1053 | -9/Materials | Build established: Gunner 1251 | -9/Materials | Discovered new exit (range 15) 1378 | -9/Materials | Repaired Lgt. Treads 1692 | -9/Materials | Discovered new exit (range 11) 1881 | -9/Materials | Entered another Materials area 1881 | -8/Materials | Evolved 2 slots: Utility x2 1968 | -8/Materials | Repaired Lgt. Treads 2726 | -8/Materials | Discovered new exit (range 10) 2760 | -8/Materials | Entered Factory 2760 | -7/Factory | Evolved 2 slots: Propulsion x1, Utility x1 4672 | -7/Factory | Discovered new exit (range 14) 4710 | -7/Factory | Identified exit to Lower Caves 4986 | -7/Factory | Build established: Skirmisher 5492 | -7/Factory | Discovered new exit (range 8) 5503 | -7/Factory | Identified exit to Storage 7023 | -7/Factory | Discovered new exit (range 8) 7031 | -7/Factory | Identified exit to Factory 7033 | -7/Factory | Entered another Factory area 7033 | -6/Factory | Evolved 2 slots: Utility x2 7231 | -6/Factory | Discovered new exit (range 11) 7725 | -6/Factory | Discovered new exit (range 18) 7819 | -6/Factory | Garrison activated, responded to threat 7885 | -6/Factory | Identified exit to Factory 7898 | -6/Factory | Entered another Factory area 7898 | -5/Factory | Evolved 2 slots: Utility x2 8137 | -5/Factory | Discovered new exit (range 9) 8151 | -5/Factory | Identified exit to Upper Caves 8577 | -5/Factory | Garrison activated, responded to threat 8795 | -5/Factory | Cargo convoy interrupted 8959 | -5/Factory | Lost 3 parts (3n) 9215 | -5/Factory | Build established: Scavenger-Skirmisher 9260 | -5/Factory | Garrison activated, responded to threat 9968 | -5/Factory | Lost 5 parts (3n2w) 9982 | -5/Factory | Entered Upper Caves 10357 | -5/Upper Caves | Spotted B-75 Beast 10377 | -5/Upper Caves | Ambushed by wild Derelicts 10410 | -5/Upper Caves | Lost 3 parts (2n1u) 10443 | -5/Upper Caves | Destroyed B-75 Beast 10931 | -5/Upper Caves | Attacked by a delusional Derelict stockpiling Unaware 11196 | -5/Upper Caves | Discovered new exit (range 5) 11201 | -5/Upper Caves | Identified exit to Upper Caves 11204 | -5/Upper Caves | Entered another Upper Caves area 11204 | -5/Upper Caves | Accompanied by 1 ally 11234 | -5/Upper Caves | Learned Factory stockpile data 11571 | -5/Upper Caves | Core integrity fell below 50% 12044 | -5/Upper Caves | Encountered a Warlord checkpoint 12168 | -5/Upper Caves | Discovered new exit (range 20) 12200 | -5/Upper Caves | Identified exit to Zhirov 12217 | -5/Upper Caves | Entered Zhirov 12217 | -5/Zhirov | Discovered new exit (range 3) 12222 | -5/Zhirov | Identified exit to Proximity Caves 12255 | -5/Zhirov | Met Zhirov 12286 | -5/Zhirov | Learned location of Quarantine (-2) 12286 | -5/Zhirov | Learned location of Testing (-3) 12286 | -5/Zhirov | Learned location of Command (-1) 12326 | -5/Zhirov | Zhirov requested help retrieving the SGEMP Prototype 12367 | -5/Zhirov | Found Alien Artifact 12372 | -5/Zhirov | Identified Integrated Reactor 12372 | -5/Zhirov | Installed Integrated Reactor, increased core energy generation (+10) 12404 | -5/Zhirov | Found Alien Artifact 12404 | -5/Zhirov | Identified Transdimensional Reconstructor 12404 | -5/Zhirov | Warped through subspace 12603 | -5/Zhirov | Build established: Scavenger-Mutant 12700 | -5/Zhirov | Entered Proximity Caves 13012 | -4/Proximity Caves | Build established: Scavenger-Skirmisher 13124 | -4/Proximity Caves | Spotter reported a threat 14586 | -4/Proximity Caves | Build established: Scavenger-Gunner 14599 | -4/Proximity Caves | Discovered new exit (range 9) 14616 | -4/Proximity Caves | Identified exit to Factory 14621 | -4/Proximity Caves | Entered Factory 14621 | -4/Factory | Evolved 2 slots: Power x1, Utility x1 14645 | -4/Factory | Found Unknown Device 14645 | -4/Factory | Identified Quantum Capacitor 14951 | -4/Factory | Fabricated Assault Drone Bay (x1) 15219 | -4/Factory | Lost 3 parts (2n1u) 15254 | -4/Factory | Destroyed 7 combat bots 15407 | -4/Factory | Spotted B-86 Titan 15619 | -4/Factory | Lost 6 parts (2p1n1u2w) 15655 | -4/Factory | Crushed by falling debris 15660 | -4/Factory | Crushed by falling debris 15660 | -4/Factory | System corruption reached 10% 15691 | -4/Factory | Lost 3 parts (1p2u) 15731 | -4/Factory | Released all parts (5) 15761 | -4/Factory | Lost 9 parts (1p1n3u4w) 15956 | -4/Factory | Garrison activated, responded to threat 16072 | -4/Factory | Lost 8 parts (2p2n3u1w) 16181 | -4/Factory | Garrison activated, responded to threat 16200 | -4/Factory | Crushed by falling debris 16200 | -4/Factory | System corruption reached 30% 16200 | -4/Factory | Released all parts (8) 16202 | -4/Factory | Crushed by falling debris 16208 | -4/Factory | Core integrity fell below 50% 16213 | -4/Factory | Spotted B-86 Titan 16231 | -4/Factory | Lost 9 parts (2p4n2u1w) 16261 | -4/Factory | Core integrity fell below 20% 16276 | -4/Factory | Destroyed by S-27 Virus with Autogun Last Messages --------------- 16220_ S-27 Virus destroyed. 16222_ K-01 Serf collects debris. 16222_ K-01 Serf cleans the Matter Pump. 16226_ System corrupted: Energy discharge (-29). 16228_ K-01 Serf cleans the Matter Pump. 16230_ O-24 Administrator: "IFF HANDSHAKE FAILED. SECURING TERMINAL." 16240_ ALERT: Hostiles spotted, dispatching reinforcements to Terminal F011. 16241_ ZR:IYKNN6TN1Z4CSLUMS9K| |4DHT>%9 16258_ >2OV5BIHVBIUPBAT:IP 16267_ Slammed into S-27 Virus. 16274_ System corrupted: Heat flow error (+251). 16274_ Pressure Siphon disabled. Map ----- +----------------------------------------------------+ | ?????# """ """ """ """ """ """ ##### # | | ###### """ """ """ """ """ """ ##???# """ # | | """ """ """ """ """ """ #????# """ # | | #????# ! """ # | | """ """ """ """ """ """ #????# # | | """ """ """ """ """ """ #????# """ # | | """ """ """ """ """ """ #????# """ # | | #????#[ """ # | | #????# # | | #############+############## #????########## | | ???????????????????????????# #?????????????# | | ??????????????????########## #?????????????# | | ??????????????????# #?????????????# | | ??????????????????# [ #?????????????# | | ??????????????????# """" """" +?????????????# | | ??????????????????# """" """" #?????????????# | | ??????????????????# """" """" #?????????????# | | ??????????????????# ] #?????????????# | | ??????????????????# """" """" ############### | | ??????????????????# """" """" ## # | | ???????????######## """" """" ## """ """ # | | ??????????? ## """ """ # | | ?????????? """" """" ## """ """ # | | ?????????? """" """" ## "%" # | | ????????? """% %""" s s /s """ """ / | | ????????? g@ s## """ """ # | | ????????? g b ## """ """ # | | ????????? o g ## # | | ???????????###########/############## # | | ???????????????????? ?????????????# # | | ?????????????????? ??????????????# [ # | | ????????????????# """???????????????############## | | ????????????????# """????????????????????????????# | | ????????????????# "??????????????????????????????# | | ?????????????????????????????????????????????????# | | ?????????????????????????????????????????????????# | | ????????????????????*????????????????????????????# | | ?????????????????????????????????????????????????# | | ?????????????????????????????????????????????????? | | ?????????????????????????????????????????????????? | | ?????????????????????????????????????????????????? | | ?????????????????????????????????????????????????? | | ?????????????????????????????????????????????????? | | ?????????????????????????????????????????????????? | | ?????????????????????????????????????????????????? | | ?????????????????????????????????????????????????? | | | | | | | | | +----------------------------------------------------+ Best States ------------- Heat Dissipation 147 Energy Generation 47 Energy Capacity 530 Matter Stores 300 Matter Capacity 300 Sight Range 22 Robot Scan Range 15 Terrain Scan Density 10 Jamming Range 14 Base Temperature (-) 150 Armor Coverage 750 Resistance: KI 20 Core Shielding 40 Propulsion Shielding 66 Weapon Shielding 66 Evasion (%) 50 Targeting Accuracy 8 Melee Accuracy 8 Target Analysis 6 Recoil Reduction 4 Item Schematics ----------------- Assault Drone Bay | -5/Zhirov | Free Exp. Heat Sink | -5/Zhirov | Free Exp. Optical Array | -5/Zhirov | Free Imp. Arc Thrower | -5/Zhirov | Free Robot Schematics ------------------ None Fabricated ------------ Assault Drone Bay | x1 | -4/Factory Repaired ---------- Lgt. Treads | 36% | -9/Materials Lgt. Treads | 72% | -8/Materials Alien Tech Used ----------------- Integrated Reactor Transdimensional Reconstructor Achievements -------------- Subspace Traveler The Science Guy Challenges ------------ None Game ------ Seed AntimatterChainMaul Manual? 0 Play Time 02:01:50 Cumulative 89.9 hours Start 2025.09.23 @ 15:22:33 End 2025.09.23 @ 23:40:01 Sessions 3 Manual Loads 0 Difficulty Rogue Special Mode None Game No. 187 Rogue 185 Adventurer 0 Explorer 2 Win Type - Total 0 Types 0/0/0/0/0/0/0/0/0/0 Lore% 33 Gallery% 47 Achievement% 42 Wizard Run 0 Options --------- Layout 2 ASCII 0 Keyboard 1 Movement Arrows Keybinds 0 Fullscreen 1 Font 28/SmallcapsGlow Map View 50x49 Zoom Use 0% Tactical HUD 1 Map Filters NONE Filters NONE Steam 1 RUN: e2a63a78-6552-44c8-8285-9010ca7a307e